[Event "4NCL 2023-2024"]
[Site "Daventry"]
[Date "2024.05.06"]
[Round "11.24"]
[White "Rendle, Thomas E"]
[Black "Steil-Antoni, Fiona"]
[Result "1-0"]
[ECO "D22"]
[WhiteElo "2380"]
[BlackElo "2106"]
[Annotator "TA"]
[PlyCount "77"]
[EventDate "2023.11.11"]
[EventType "team-tourn"]
[EventCountry "ENG"]
[SourceTitle "playchess.com"]
[Source "ChessBase"]
[SourceQuality "1"]
[TimeControl "40/6000+30:3000+30"]

{[%evp 13,77,34,50,33,67,54,73,84,81,81,90,94,96,100,92,106,99,61,51,52,95,51,49,39,62,41,40,35,43,33,72,82,90,63,80,43,51,53,54,34,135,35,25,41,41,0,0,0,56,52,47,49,43,44,25,0,385,394,425,402,571,570,603,585,596,588]} 1. d4 {[%emt 0:00:02]} d5 {[%emt 0:00:56]} 2. c4 {[%emt 0:00:10]} dxc4 {[%emt 0:00:05]} 3. Nf3 {[%emt 0:00:07]} Nf6 {[%emt 0:00:17]} 4. e3 {[%emt 0:00:19]} Bg4 {[%emt 0:01:21]} 5. Bxc4 {[%emt 0:00:27]} e6 {[%emt 0:00:55]} 6. h3 {[%emt 0:00:20]} Bh5 {[%emt 0:00:15]} 7. Nc3 {[%emt 0:01:11]} a6 {[%emt 0:02:51]} 8. O-O {[%emt 0:15:15]} b5 {[%emt 0:08:24]} 9. Be2 {[%emt 0:03:37]} c5 {[%emt 0:11:34]} 10. dxc5 {[%emt 0:05:27] Hoping for Qxd8+. White is better.} Qxd1 {[%emt 0:02:01]} 11. Rxd1 {[%emt 0:02:35]} Bxc5 {[%emt 0:01:36]} 12. g4 {[%emt 0:02:05]} Bg6 {[%emt 0:00:06]} 13. Ne5 {[%emt 0:00:09]} Nfd7 {[%emt 0:13:24]} 14. Nxg6 {[%emt 0:14:17]} hxg6 {[%emt 0:00:11]} 15. Bf3 {[%emt 0:01:47]} Ra7 {[%emt 0:00:05]} 16. Bg2 {[%emt 0:00:29]} f5 {[%emt 0:17:43]} 17. a4 {[%emt 0:10:08]} b4 {[%emt 0:03:17]} 18. Ne2 {[%emt 0:01:22]} Ne5 {[%emt 0:09:31]} 19. gxf5 {[%emt 0:18:41]} gxf5 {[%emt 0:00:51]} 20. b3 {[%emt 0:00:44]} Kf7 {[%emt 0:07:45]} 21. Bb2 {[%emt 0:02:22]} Ng6 {[%emt 0:00:32]} 22. Rac1 {[%emt 0:00:45]} Be7 {[%emt 0:03:46]} 23. Rc4 {[%emt 0:04:48]} a5 {[%emt 0:04:12]} 24. Nd4 {[%emt 0:02:38][%cal Od4e6] [#] Nxe6! would now be deadly. White has more active pieces.} Rd7 {[%emt 0:03:24]} 25. Rdc1 {[%emt 0:00:26][%cal Bd1c1,Bc1c8,Bc8h8][%mdl 32]} Rhd8 {[%emt 0:04:28]} 26. Rc8 {[%emt 0:03:14]} Bd6 {[%emt 0:03:07]} (26... Nh4 $1 $14) 27. f4 {[%emt 0:01:30]} ({White should try} 27. Nf3 $16) 27... Rxc8 $1 $14 {[%emt 0:02:03]} 28. Rxc8 {[%emt 0:00:08] [#] And now Nb5 would win.} Ne7 {[%emt 0:01:17]} 29. Rh8 {[%emt 0:02:20] Black must now prevent Nf3.} Ng6 $1 {[%emt 0:01:17]} 30. Rc8 $36 {[%emt 0:00:08][%mdl 2048] aiming for Nb5. Black is under pressure.} Ne7 {[%emt 0:00:06]} 31. Rc4 {[%emt 0:00:07]} Na6 {[%emt 0:02:58]} 32. Nb5 $1 {[%emt 0:02:39]} Bc5 {[%emt 0:00:34] Wards off Rd4} 33. Bd4 {[%emt 0:01:11]} Bxd4 {[%emt 0:00:42]} 34. exd4 {[%emt 0:00:30]} Nd5 $2 {[%emt 0:01:22][%mdl 8192]} (34... Rd8 $11) 35. Bxd5 $18 {[%emt 0:00:46]} Rxd5 {[%emt 0:00:41]} 36. Rc8 {[%emt 0:00:54] Prevents Rd8} g5 {[%emt 0:02:02]} (36... Rd7 {might work better.} 37. Ra8 Nc7) 37. Ra8 {[%emt 0:01:46] White is clearly winning.} Nc5 {[%emt 0:00:17]} 38. dxc5 {[%emt 0:00:21]} Rxc5 {[%emt 0:00:14]} 39. fxg5 {[%emt 0:04:41] Weighted Error Value: White=0.13 (very precise) /Black=0.40.  Loses game:     	---       	Black=1      Mistake:       	White=1     	Black=2      Inaccurate:     	White=3     	Black=3      OK:         	White=14    	Black=10     Best:        	White=2     	Black=4      Strong:       	White=1     	Black=2} 1-0

[Event "4NCL 2023-2024"]
[Site "Daventry"]
[Date "2024.05.06"]
[Round "11.25"]
[White "Pein, Malcolm"]
[Black "Chow, Samuel"]
[Result "1-0"]
[ECO "A34"]
[WhiteElo "2272"]
[BlackElo "2355"]
[Annotator "TA"]
[PlyCount "87"]
[EventDate "2023.11.11"]
[EventType "team-tourn"]
[EventCountry "ENG"]
[SourceTitle "playchess.com"]
[Source "ChessBase"]
[SourceQuality "1"]
[TimeControl "40/6000+30:3000+30"]

{[%evp 21,87,-47,-8,0,-12,-19,0,-37,24,0,12,9,6,0,0,0,0,-43,17,22,21,-66,-6,-5,-11,-52,0,0,41,11,12,8,20,20,19,19,19,20,202,185,481,220,220,229,664,664,664,664,664,664,664,664,664,664,664,657,657,657,657,657,985,966,918,905,952,705,1290,965]} 1. Nf3 {[%emt 0:00:06]} Nf6 {[%emt 0:00:14]} 2. c4 {[%emt 0:00:10]} c5 {[%emt 0:00:32]} 3. g3 {[%emt 0:00:50]} Nc6 {[%emt 0:01:47]} 4. Bg2 {[%emt 0:00:44]} d5 {[%emt 0:00:41]} 5. cxd5 {[%emt 0:00:29]} Nxd5 {[%emt 0:00:07]} 6. Nc3 {[%emt 0:00:21]} Nc7 {[%emt 0:00:54]} 7. b3 {[%emt 0:03:20]} e5 {[%emt 0:04:05]} 8. Bb2 {[%emt 0:00:06]} f6 {[%emt 0:00:46]} 9. O-O {[%emt 0:01:27]} Be7 {[%emt 0:05:09]} 10. d3 {[%emt 0:03:34]} Be6 {[%emt 0:04:04]} 11. Rc1 {[%emt 0:02:16]} O-O {[%emt 0:04:53]} 12. e3 {[%emt 0:08:34][%cal Od3d4]} Qe8 {[%emt 0:05:08]} 13. Qe2 {[%emt 0:05:08]} Rd8 {[%emt 0:03:31]} 14. Ne4 {[%emt 0:15:44] The position is equal.} Nb4 {[%emt 0:13:53]} (14... b6 $15) 15. d4 {[%emt 0:09:32]} exd4 {[%emt 0:04:32]} 16. exd4 {[%emt 0:18:22]} Nxa2 {[%emt 0:01:43]} 17. Ra1 {[%emt 0:00:54]} Bxb3 {[%emt 0:01:11]} 18. Rfe1 {[%emt 0:13:18]} c4 {[%emt 0:22:25]} 19. Nfd2 {[%emt 0:00:30][%cal Od2b3]} Bb4 {[%emt 0:06:23]} ({Better is} 19... Qf7 $15 20. Nxb3 cxb3) 20. Nxb3 $11 {[%emt 0:05:00]} cxb3 {[%emt 0:01:17]} 21. Red1 {[%emt 0:02:25]} (21. Qc4+ $11 Qf7 22. Qxf7+ Rxf7 23. Re3) 21... Qf7 $1 $15 {[%emt 0:04:38]} 22. Qf3 $1 {[%emt 0:01:54][%cal Od4d5]} (22. d5 Nxd5 23. Qd3 Be7 24. Qxb3 Ndb4) 22... a5 {[%emt 0:02:09]} 23. Nc5 {[%emt 0:03:22] Dodges a4} Bxc5 {[%emt 0:01:17]} ({Black should try} 23... Nd5 $15) 24. dxc5 $11 {[%emt 0:00:03]} Na6 {[%emt 0:02:57]} 25. c6 {[%emt 0:02:18]} bxc6 {[%emt 0:02:44]} 26. Qxc6 {[%emt 0:00:23]} N6b4 {[%emt 0:00:34]} 27. Qb6 {[%emt 0:02:10]} Nd3 {[%emt 0:08:49]} 28. Qxa5 {[%emt 0:02:45]} Qc4 {[%emt 0:00:51]} 29. Bf1 {[%emt 0:05:03][%mdl 1024] [#] Hoping for Ba3. White has compensation. A strong pair of Bishops.} Rd5 $2 {[%emt 0:01:20] This move loses the game for Black.} (29... Qb4 $11 {and Black is okay.} 30. Qxb4 Naxb4) 30. Qb6 $18 {[%emt 0:00:38]} Re8 {[%emt 0:02:11] Against Qe6+} (30... Kh8 {keeps fighting.}) 31. Rd2 {[%emt 0:01:06]} (31. Re1 $142 Rf8 32. Ba3) 31... Nab4 {[%emt 0:02:59] [#]} 32. Rad1 $1 $40 {[%emt 0:01:36][%mdl 128] Black is in trouble.} Nxb2 $2 {[%emt 0:01:45]} (32... h5 33. Ba3 Rd4 34. Bxb4 Qxb4 35. Qxb4 Rxb4) 33. Bxc4 {[%emt 0:01:49] White is clearly winning.} Nxc4 {[%emt 0:00:14]} 34. Qxb4 {[%emt 0:00:09]} Nxd2 {[%emt 0:00:56]} 35. Rxd2 {[%emt 0:00:01]} Rxd2 {[%emt 0:00:24]} 36. Qxd2 {[%emt 0:00:02][%mdl 4096] Endgame. KQ-KR} Rb8 {[%emt 0:00:33] ...b2 would now be deadly.} 37. Qd5+ {[%emt 0:00:07]} Kh8 {[%emt 0:00:09] aiming for ...b2.} 38. Qd6 {[%emt 0:00:15]} Re8 {[%emt 0:00:53]} 39. Qb6 {[%emt 0:00:11]} h6 {[%emt 0:00:33]} 40. Qxb3 {[%emt 0:00:06]} Kh7 {[%emt 0:00:27]} 41. Qd3+ {[%emt 0:50:10]} Kg8 {[%emt 0:05:32]} 42. Qd5+ {[%emt 0:00:00]} Kf8 {[%emt 0:02:04]} 43. Kg2 {[%emt 0:00:00]} g6 {[%emt 0:03:51]} 44. Qd7 {[%emt 0:00:00] Weighted Error Value: White=0.24 (precise) /Black=0.54.  Loses game:     	---       	Black=1      Mistake:       	White=2     	Black=5      Inaccurate:     	White=3     	Black=1      OK:         	White=6     	Black=8      Best:        	White=2     	Black=1      Strong:       	White=2     	Black=1} 1-0

[Event "4NCL 2023-2024"]
[Site "Daventry"]
[Date "2024.05.06"]
[Round "11.26"]
[White "Li, Harry"]
[Black "Pein, Jonathan"]
[Result "1-0"]
[ECO "B75"]
[WhiteElo "2138"]
[BlackElo "2272"]
[Annotator "RC"]
[PlyCount "69"]
[EventDate "2023.11.11"]
[EventType "team-tourn"]
[EventCountry "ENG"]
[SourceTitle "playchess.com"]
[Source "ChessBase"]
[SourceQuality "1"]
[TimeControl "40/6000+30:3000+30"]

1. e4 {[%emt 0:00:02]} c5 {[%emt 0:00:04]} 2. Nf3 {[%emt 0:00:04]} d6 {[%emt 0:00:05]} 3. d4 {[%emt 0:00:03]} cxd4 {[%emt 0:00:04]} 4. Nxd4 {[%emt 0:00:03]} Nf6 {[%emt 0:00:09]} 5. Nc3 {[%emt 0:00:03]} g6 {[%emt 0:00:11]} 6. Be3 {[%emt 0:00:09]} Nc6 {[%emt 0:00:05]} 7. f3 {[%emt 0:01:19]} h5 {[%emt 0:00:14]} 8. Bc4 {[%emt 0:00:21]} Bd7 {[%emt 0:01:55]} 9. Qd2 {[%emt 0:00:06]} Bg7 {[%emt 0:01:49]} 10. O-O-O {[%emt 0:02:06]} Na5 {[%emt 0:00:35]} 11. Bb3 {[%emt 0:03:31]} Rb8 {[%emt 0:00:59]} 12. h3 {[%emt 0:09:05]} h4 {[%emt 0:05:12]} 13. Qd3 {[%emt 0:11:51]} Rh5 {[%emt 0:10:54]} 14. Nde2 {[%emt 0:05:25]} Nxb3+ {[%emt 0:06:30]} 15. cxb3 {[%emt 0:00:25]} a5 {[%emt 0:10:33]} 16. Kb1 {[%emt 0:01:23]} Kf8 {[%emt 0:06:51]} 17. g4 {[%emt 0:24:49]} hxg3 {[%emt 0:05:53]} 18. h4 {[%emt 0:00:34]} g2 {[%emt 0:02:26]} 19. Rh2 {[%emt 0:00:06]} b5 {[%emt 0:08:36]} 20. Nf4 {[%emt 0:01:01]} Rh7 {[%emt 0:04:20]} 21. Rxg2 {[%emt 0:06:44]} Rxh4 {[%emt 0:16:56]} 22. Rxg6 {[%emt 0:05:42]} b4 {[%emt 0:08:41]} 23. Ncd5 {[%emt 0:00:52]} Nxd5 {[%emt 0:14:13]} 24. Qxd5 {[%emt 0:03:48]} Be5 {[%emt 0:04:37]} 25. Rdg1 {[%emt 0:00:32]} Rh8 {[%emt 0:00:25]} 26. R6g2 {[%emt 0:06:05]} Rb5 {[%emt 0:00:26]} 27. Qd2 {[%emt 0:00:15]} Bxf4 {[%emt 0:00:41]} 28. Bxf4 {[%emt 0:00:07]} f6 {[%emt 0:00:35]} 29. Bh6+ {[%emt 0:06:16]} Kf7 {[%emt 0:00:01]} 30. Rg7+ {[%emt 0:00:05]} Ke6 {[%emt 0:00:07]} 31. Qf4 {[%emt 0:00:11]} d5 {[%emt 0:01:17]} 32. exd5+ {[%emt 0:01:02]} Rxd5 {[%emt 0:00:31]} 33. Re1+ {[%emt 0:00:24]} Re5 {[%emt 0:00:03]} 34. Qc4+ {[%emt 0:00:11]} Kd6 {[%emt 0:00:38]} 35. Rd1+ {[%emt 0:00:03]} 1-0

[Event "4NCL 2023-2024"]
[Site "Daventry"]
[Date "2024.05.06"]
[Round "11.27"]
[White "Hoffmann, Hendrik"]
[Black "Townsend, M Paul"]
[Result "1-0"]
[ECO "C15"]
[WhiteElo "2231"]
[BlackElo "2153"]
[Annotator "RC"]
[PlyCount "75"]
[EventDate "2023.11.11"]
[EventType "team-tourn"]
[EventCountry "ENG"]
[SourceTitle "playchess.com"]
[Source "ChessBase"]
[SourceQuality "1"]
[TimeControl "40/6000+30:3000+30"]

1. e4 {[%emt 0:00:03]} e6 {[%emt 0:00:09]} 2. d4 {[%emt 1:41:27]} d5 {[%emt 0:00:06]} 3. Nc3 {[%emt 0:00:00]} Bb4 {[%emt 0:00:24]} 4. exd5 {[%emt 0:00:00]} Qxd5 {[%emt 0:00:34]} 5. Nf3 {[%emt 0:00:00]} Bd7 {[%emt 0:00:20]} 6. Bd3 {[%emt 0:00:00]} Bb5 {[%emt 0:00:36]} 7. O-O {[%emt 0:00:00]} Bxc3 {[%emt 0:00:24]} 8. bxc3 {[%emt 0:00:00]} Nf6 {[%emt 0:16:11]} 9. Ba3 {[%emt 0:00:00]} Nc6 {[%emt 0:14:35]} 10. Re1 {[%emt 0:00:00]} O-O-O {[%emt 0:07:18]} 11. Rb1 {[%emt 0:00:00]} Bxd3 {[%emt 0:02:24]} 12. cxd3 {[%emt 0:00:00]} Qa5 {[%emt 0:11:34]} 13. Qb3 {[%emt 0:00:00]} b6 {[%emt 0:00:45]} 14. Bc1 {[%emt 0:00:00]} Rd5 {[%emt 0:19:53]} 15. Be3 {[%emt 0:00:00]} Qa6 {[%emt 0:04:30]} 16. Qc2 {[%emt 0:00:00]} Ra5 {[%emt 0:02:02]} 17. Rb2 {[%emt 0:00:00]} e5 {[%emt 0:02:04]} 18. Bg5 {[%emt 0:00:00]} Re8 {[%emt 0:07:49]} 19. Bxf6 {[%emt 0:00:00]} gxf6 {[%emt 0:00:03]} 20. c4 {[%emt 0:00:00]} Re7 {[%emt 0:11:33]} 21. d5 {[%emt 0:00:00]} Nb8 {[%emt 0:01:03]} 22. g3 {[%emt 0:00:00]} Nd7 {[%emt 0:00:45]} 23. Nd4 {[%emt 0:01:03]} Ra3 {[%emt 0:03:17]} 24. Nb5 {[%emt 0:02:16]} Ra4 {[%emt 0:00:51]} 25. Qe2 {[%emt 0:00:23]} Qa5 {[%emt 0:01:04]} 26. Rc1 {[%emt 0:00:48]} Re8 {[%emt 0:01:25]} 27. c5 {[%emt 0:01:16]} bxc5 {[%emt 0:00:39]} 28. d4 {[%emt 0:02:49]} c4 {[%emt 0:01:05]} 29. d6 {[%emt 0:00:08]} c6 {[%emt 0:00:44]} 30. Rxc4 {[%emt 0:01:23]} Rxc4 {[%emt 0:00:11]} 31. Qxc4 {[%emt 0:00:06]} Qb6 {[%emt 0:00:35]} 32. Qxc6+ {[%emt 0:02:16]} Qxc6 {[%emt 0:00:43]} 33. Nxa7+ {[%emt 0:00:05]} Kd8 {[%emt 0:00:06]} 34. Nxc6+ {[%emt 0:00:04]} Kc8 {[%emt 0:00:05]} 35. Ne7+ {[%emt 0:00:48]} Kd8 {[%emt 0:00:14]} 36. Rc2 {[%emt 0:00:17]} Nb6 {[%emt 0:00:36]} 37. dxe5 {[%emt 0:00:57]} fxe5 {[%emt 0:00:08]} 38. Rc7 {[%emt 0:00:23]} 1-0

[Event "4NCL 2023-2024"]
[Site "Daventry"]
[Date "2024.05.06"]
[Round "11.28"]
[White "Carroll, Thomas"]
[Black "Horton, Jamie A"]
[Result "1/2-1/2"]
[ECO "D03"]
[WhiteElo "2091"]
[BlackElo "2183"]
[Annotator "RC"]
[PlyCount "42"]
[EventDate "2023.11.11"]
[EventType "team-tourn"]
[EventCountry "ENG"]
[SourceTitle "playchess.com"]
[Source "ChessBase"]
[SourceQuality "1"]
[TimeControl "40/6000+30:3000+30"]

1. d4 {[%emt 0:00:03]} d5 {[%emt 0:03:17]} 2. Nf3 {[%emt 0:00:52]} e6 {[%emt 0:00:12]} 3. Bg5 {[%emt 0:02:53]} Nf6 {[%emt 0:05:13]} 4. e3 {[%emt 0:01:56]} h6 {[%emt 0:07:16]} 5. Bh4 {[%emt 0:01:13]} g5 {[%emt 0:01:11]} 6. Bg3 {[%emt 0:00:27]} Ne4 {[%emt 0:00:39]} 7. Ne5 {[%emt 0:10:34]} Nxg3 {[%emt 0:12:47]} 8. hxg3 {[%emt 0:00:41]} Nd7 {[%emt 0:00:25]} 9. f4 {[%emt 0:06:58]} Nxe5 {[%emt 0:10:15]} 10. fxe5 {[%emt 0:01:37]} Qe7 {[%emt 0:11:01]} 11. Bd3 {[%emt 0:02:14]} Bd7 {[%emt 0:06:23]} 12. Nd2 {[%emt 0:04:37]} O-O-O {[%emt 0:04:48]} 13. Qe2 {[%emt 0:11:20]} Bg7 {[%emt 0:04:21]} 14. Nb3 {[%emt 0:21:03]} f6 {[%emt 0:08:12]} 15. exf6 {[%emt 0:01:36]} Bxf6 {[%emt 0:00:07]} 16. O-O-O {[%emt 0:03:27]} e5 {[%emt 0:13:51]} 17. Nc5 {[%emt 0:03:29]} Kb8 {[%emt 0:02:16]} 18. Rhf1 {[%emt 0:05:03]} Rhf8 {[%emt 0:00:50]} 19. Nxd7+ {[%emt 0:02:31]} Qxd7 {[%emt 0:01:21]} 20. Bf5 {[%emt 0:02:58]} Qa4 {[%emt 0:04:17]} 21. Kb1 {[%emt 0:03:24]} Bg7 {[%emt 0:02:33]} 1/2-1/2

[Event "4NCL 2023-2024"]
[Site "Daventry"]
[Date "2024.05.06"]
[Round "11.29"]
[White "Gallana, Marco"]
[Black "Arnott, Jonathan W"]
[Result "1-0"]
[ECO "A22"]
[WhiteElo "2260"]
[BlackElo "2113"]
[Annotator "TA"]
[PlyCount "95"]
[EventDate "2023.11.11"]
[EventType "team-tourn"]
[EventCountry "ENG"]
[SourceTitle "playchess.com"]
[Source "ChessBase"]
[SourceQuality "1"]
[TimeControl "40/6000+30:3000+30"]

{[%evp 9,95,72,61,64,90,20,33,-5,-4,12,60,0,0,0,34,25,89,95,97,31,44,18,28,27,38,16,33,0,0,0,0,-29,481,477,466,506,603,604,554,0,583,0,571,586,683,680,650,351,345,371,316,300,400,402,404,385,300,298,377,410,561,554,522,560,727,659,796,796,834,743,1000,1011,972,930,1267,1267,1106,1091,29966,29967,29973,29970,29981,29982,29982,29983,29984,29983]} 1. c4 {[%emt 0:00:03]} e5 {[%emt 0:00:13][%cal Be7e5,Be5e4][%mdl 32]} 2. Nc3 {[%emt 0:00:11]} Nf6 {[%emt 0:00:17]} 3. Nf3 {[%emt 0:00:18]} e4 {[%emt 0:00:34]} 4. Ng5 {[%emt 0:00:06]} c6 {[%emt 0:00:08]} 5. Qa4 {[%emt 0:00:10]} Qe7 {[%emt 0:00:40]} 6. Qc2 {[%emt 0:07:24][%cal Rg5e4] White is much more active.} b5 {[%emt 0:00:04]} 7. cxb5 {[%emt 0:10:37]} (7. Ngxe4 bxc4 8. Nxf6+ Qxf6 $11) (7. Ncxe4 Nxe4 8. Nxe4 bxc4 $11) ({White should try} 7. e3 $1 $16) 7... d5 $11 {[%emt 0:00:11] ...h6 is the strong threat.} 8. d3 {[%emt 0:00:41][%cal Rd3e4] White is slightly better.} h6 {[%emt 0:08:30]} 9. Nh3 {[%emt 0:00:33]} Bf5 {[%emt 0:08:52]} (9... exd3 $11 10. Qxd3 a6) 10. d4 {[%emt 0:11:52]} (10. e3 $14) 10... Qd7 {[%emt 0:21:58]} 11. e3 {[%emt 0:02:36]} a6 {[%emt 0:05:43][%cal Ra6b5]} 12. Na4 {[%emt 0:12:05]} Bxh3 {[%emt 0:05:07]} (12... cxb5 13. Nb6 Qb7 (13... Bb4+ $2 14. Bd2 $18) 14. Nxa8 $14) (12... Qb7 $1 $11) 13. gxh3 $16 {[%emt 0:02:02]} Qb7 {[%emt 0:07:12] Against Nb6} (13... axb5 14. Nb6 Qa7 (14... Bb4+ $2 15. Bd2 $18) 15. Nxa8 $16) 14. b6 {[%emt 0:00:53]} (14. bxc6 $16 Nxc6 15. Bd2) 14... Nbd7 $14 {[%emt 0:01:36]} 15. Bd2 {[%emt 0:02:08]} Nxb6 {[%emt 0:00:52]} 16. Rc1 {[%emt 0:00:23] Threatens to win with Nxb6.} Nxa4 {[%emt 0:02:12]} 17. Qxa4 {[%emt 0:01:50]} Kd7 {[%emt 0:00:21][%cal Of8d6,Be8d7,Bd7e7,Be7d8][%mdl 32]} 18. h4 {[%emt 0:07:26] And now Bh3+ would win.} Bd6 {[%emt 0:10:58]} 19. Rg1 {[%emt 0:22:49]} g6 {[%emt 0:04:04][%cal Oh8b8]} 20. b3 {[%emt 0:01:54]} (20. Bh3+ $5 Ke7 21. Rxc6 $14) 20... Bxh2 $2 {[%emt 0:06:28][%mdl 8192] [#] White stays focused until the end.} (20... h5 $11) 21. Bh3+ $1 $18 {[%emt 0:00:36]} Ke7 {[%emt 0:00:11]} 22. Bb4+ {[%emt 0:01:07]} (22. Qxc6 Rhb8 (22... Qxc6 23. Rxc6 a5 24. Rh1 $11) 23. Qxb7+ Rxb7 $11) 22... Kd8 {[%emt 0:02:36]} 23. Ba5+ {[%emt 0:03:47] A strong pair of Bishops.} (23. Qxc6 Qxb4+ 24. Kd1 Ke7 $19) 23... Ke7 {[%emt 0:01:00]} 24. Bb4+ {[%emt 0:00:12]} (24. Qxc6 Rhb8 $16 (24... Qxc6 25. Rxc6 Rhb8 26. Rf1 $16)) 24... Kd8 $1 {[%emt 0:00:09]} (24... Bd6 $2 25. Bxd6+ (25. Qxc6 $2 Qxb4+ 26. Kf1 Qb5+ 27. Qxb5 axb5 $19) 25... Kxd6 26. Qa3+ Kc7 27. Qe7+ Kb6 28. Qxf6 $18) 25. Ba5+ {[%emt 0:00:07]} (25. Qxc6 Qxb4+ 26. Kd1 Ke7 $19) 25... Ke7 $1 {[%emt 0:00:06] [#]} 26. Rxc6 $1 {[%emt 0:00:29]} Ne8 {[%emt 0:06:11]} (26... Kf8 27. Rg2) 27. Rb6 {[%emt 0:21:41]} Qc7 {[%emt 0:03:00]} 28. Re6+ {[%emt 0:00:00]} fxe6 {[%emt 0:00:25]} 29. Bxc7 {[%emt 0:00:00]} (29. Rxg6 $2 {perishes.} Qc1+ 30. Ke2 Qc8 31. Bxe6 Qc2+ 32. Ke1 Qb1+ 33. Kd2 Qd3+ (33... Nf6 34. Bb4+ Bd6 35. Bxd6+ Kxe6 36. Qc6 $11) 34. Ke1 Qb5 35. Bb4+ Bd6 36. Bxd6+ Nxd6 $19) 29... Nxc7 {[%emt 0:03:05]} 30. Rxg6 {[%emt 0:00:00]} Rag8 {[%emt 0:00:38] Dodges Rg7+} 31. Rxg8 {[%emt 0:00:00]} Rxg8 {[%emt 0:00:33]} 32. Qb4+ {[%emt 0:00:00]} Bd6 {[%emt 0:01:09]} 33. Qb7 {[%emt 0:00:00]} Rg1+ {[%emt 0:03:24][%cal Bg8g1,Bg1h1,Bh1h4][%mdl 32]} 34. Bf1 {[%emt 0:00:00]} Rh1 {[%emt 0:00:52]} 35. b4 {[%emt 0:00:00]} Kf6 {[%emt 0:01:40]} 36. a4 {[%emt 0:00:00] Wards off Nb5} Rxh4 {[%emt 0:00:42]} 37. b5 {[%emt 0:00:00]} axb5 {[%emt 0:02:56]} 38. axb5 {[%emt 0:00:00]} Bb4+ {[%emt 0:01:24]} 39. Ke2 {[%emt 0:00:00]} Nxb5 {[%emt 0:03:27]} 40. Qxb5 {[%emt 0:00:00]} Bd6 {[%emt 0:00:03]} 41. Qe8 {[%emt 0:52:13]} Rh2 {[%emt 0:02:55]} 42. Qd8+ {[%emt 0:00:00]} Be7 {[%emt 0:00:32]} 43. Qc7 {[%emt 0:00:00]} Rh5 {[%emt 0:01:18]} 44. Qf4+ {[%emt 0:00:00] White mates.} Kg6 {[%emt 0:01:50]} 45. Qg4+ {[%emt 0:00:00]} Rg5 {[%emt 0:00:04]} 46. Qxe6+ {[%emt 0:00:00]} Bf6 {[%emt 0:00:03]} 47. Qe8+ {[%emt 0:00:00]} Kg7 {[%emt 0:01:45]} 48. Bh3 {[%emt 0:00:00] Weighted Error Value: White=0.49/Black=0.55.  Loses game:     	---       	Black=1      Mistake:       	White=3     	Black=2      Inaccurate:     	White=3     	Black=4      OK:         	White=9     	Black=10     Best:        	White=3     	Black=4      Strong:       	White=2     	Black=1} 1-0